bitfinex/quotes_ETHUSD_20241106
["timestamp","ask_amount","ask_price","bid_price","bid_amount"]
[1730862662530,0.1284061,2598.7,2596.3,0.8032]
[1730862662685,3.84867,2598.3,2596.3,0.8032]
[1730862662884,0.60270315,2597.8,2596.3,0.8032]
[1730862663122,3.84989,2597.5,2596.3,0.8032]
[1730862663280,0.8032,2598.4,2596.3,0.8032]
[1730862663503,3.84962,2597.7,2596.3,0.8032]
[1730862663715,3.8486,2598.4,2596.3,0.8032]
[1730862663940,0.6026669,2598.5,2596.3,0.8032]
[1730862664119,0.1284061,2598.7,2596.5,0.01]
[1730862664321,0.1284061,2598.7,2597.1,0.01]
[1730862664533,0.1284061,2598.7,2597.1,0.8032]
[1730862665005,3.85138,2596.5,2595.8,0.8032]
[1730862665222,3.85195,2596.1,2593.2,0.8032]
[1730862665454,3.85195,2596.1,2593.1,0.01]
[1730862665455,0.385195,2596.0,2593.7,0.01]
[1730862665655,3.85094,2596.8,2594.1,0.8032]
[1730862665805,0.55,2596.6,2594.1,0.8032]
[1730862666004,0.49225509,2597.6,2594.1,0.8032]
[1730862666254,3.55,2596.1,2594.1,0.8032]
[1730862666458,3.55,2596.1,2591.4,0.8032]
[1730862666459,0.55,2594.4,2591.4,0.8032]
[1730862666607,0.55,2593.7,2591.4,0.8032]
[1730862666808,3.55,2593.4,2591.4,0.8032]
[1730862667104,4.66909,2595.6,2591.6,0.01]
[1730862667322,3.55,2594.5,2591.7,0.8132]
[1730862667525,0.8163,2595.6,2592.5,0.8032]
[1730862667526,3.0,2595.6,2592.5,0.8032]
[1730862667756,3.0,2595.6,2590.8,1.94264728]
[1730862667757,3.85225,2595.9,2592.9,0.01]
[1730862667920,0.740179,2596.0,2592.8,0.01]
[1730862667921,0.740179,2596.0,2593.1,0.8032]
[1730862668247,0.52470678,2595.9,2593.1,0.8032]
[1730862668405,3.86297,2595.4,2593.1,0.8032]
[1730862668606,0.01,2594.7,2590.4,0.01]
[1730862668913,0.01,2595.0,2590.8,0.8032]
[1730862669110,0.8263,2593.8,2590.8,0.8032]
[1730862669309,3.0,2591.9,2590.8,0.8032]
[1730862669508,3.85743,2592.4,2590.8,0.8032]
[1730862669709,3.0,2592.3,2590.8,0.8032]
[1730862669941,3.0,2592.7,2590.8,0.8032]
[1730862670152,0.55,2593.5,2590.8,0.8032]
[1730862670459,3.0,2593.1,2590.8,0.8032]
[1730862670605,3.0,2593.2,2590.8,0.8032]
[1730862670972,3.85668,2592.9,2590.8,0.8032]
[1730862671155,3.8564,2593.1,2590.8,0.8032]
[1730862671322,3.85655,2593.0,2590.8,0.8032]
[1730862671508,0.55,2592.8,2590.8,0.8032]
[1730862671707,0.385655,2592.9,2590.8,0.8032]
[1730862671708,0.55,2593.1,2590.8,0.8032]
[1730862671945,0.440576,2593.4,2590.8,0.8032]
[1730862672165,3.85433,2594.5,2591.2,0.8032]
[1730862672307,0.8032,2594.5,2592.0,0.8032]
[1730862672510,0.8032,2594.5,2589.9,1.91021601]
[1730862672511,3.85328,2595.2,2592.2,0.01]
[1730862672713,0.8032,2595.5,2593.0,0.55]
[1730862672961,0.8132,2595.5,2592.8,0.8032]
[1730862673123,3.85439,2594.5,2592.8,0.8032]
[1730862673445,3.85477,2594.2,2592.8,0.8032]
[1730862673662,3.86297,2595.4,2592.8,0.8032]
[1730862673809,3.85426,2594.6,2592.8,0.8032]
[1730862674007,3.85297,2595.4,2592.8,0.8032]
[1730862674210,0.01,2595.3,2592.8,0.8032]
[1730862674410,0.467617,2595.3,2592.8,0.8032]
[1730862674647,0.8032,2595.5,2592.8,0.8032]
[1730862674910,3.85153,2596.4,2593.0,0.8032]
[1730862675069,3.85282,2595.5,2593.0,0.8032]
[1730862675274,3.85376,2594.9,2593.0,0.8032]
[1730862675494,0.01,2595.5,2593.0,0.8032]
[1730862675665,3.8543,2594.6,2593.0,0.8032]
[1730862675868,3.85409,2594.7,2593.0,0.8032]
[1730862676075,0.467899,2595.5,2593.0,0.8032]
[1730862676411,3.85297,2595.4,2593.0,0.8032]
[1730862676569,3.85414,2594.7,2593.0,0.8032]
[1730862676907,3.8543,2594.5,2593.0,0.8032]
[1730862677103,0.385414,2594.6,2593.0,0.8032]
[1730862677324,3.8163,2595.0,2593.0,0.8032]
[1730862677611,0.55,2594.1,2593.0,0.8032]
[1730862677969,0.8163,2595.0,2593.0,0.8032]
[1730862677970,0.467899,2595.5,2593.0,0.8032]
[1730862678290,0.01,2596.6,2593.0,0.8032]
[1730862678291,0.8163,2596.2,2593.0,0.8032]
[1730862678516,3.8542,2594.6,2593.0,0.8032]
[1730862678694,0.01,2596.0,2593.0,0.8032]
[1730862678695,3.85498,2594.1,2593.0,0.8032]
[1730862678882,3.85518,2594.0,2590.5,0.01]
[1730862679218,3.8561,2593.3,2590.1,0.01]
[1730862679425,0.38561,2593.2,2589.9,0.02]
[1730862679588,0.55,2593.1,2589.6,0.01]
[1730862679786,0.55,2593.1,2590.1,0.01]
[1730862680119,3.0,2594.1,2590.0,0.01]
[1730862680435,3.0,2594.1,2588.2,0.19491813]
[1730862680436,0.49950232,2594.4,2591.4,0.01]
[1730862680581,0.8163,2595.5,2590.7,0.02]
[1730862680783,3.85371,2594.9,2590.1,0.01]
[1730862680998,0.45747643,2594.8,2590.7,0.01]
[1730862681319,0.45747643,2594.8,2590.2,0.50874294]
[1730862681320,3.85502,2594.1,2591.0,0.01]
[1730862681484,3.85552,2593.7,2590.4,0.01]
[1730862681684,3.85446,2594.4,2588.2,5.19491813]
[1730862681685,4.068,2594.2,2589.6,0.47282687]
[1730862681996,4.068,2594.2,2589.1,2.97776992]
[1730862681997,3.85691,2592.8,2589.3,0.8032]
[1730862682197,4.058,2592.7,2589.3,0.8032]
[1730862682527,3.86012,2590.6,2589.3,0.8032]
[1730862682735,3.86139,2589.8,2588.3,0.8032]
[1730862683040,0.8163,2590.4,2586.3,1.92129636]
[1730862683041,3.8163,2588.9,2587.3,9.46691523]
[1730862683320,3.55,2587.8,2586.3,0.8032]
[1730862683529,0.55,2587.8,2585.2,0.8032]
[1730862683684,0.55,2588.0,2585.7,0.8032]
[1730862683888,0.55,2589.0,2585.8,0.8132]
[1730862684184,0.8163,2590.2,2585.8,0.8132]
[1730862684185,3.0,2589.1,2586.7,0.8032]
[1730862684385,3.55,2588.2,2586.7,0.8032]
[1730862684625,0.01,2587.9,2584.5,1.95055312]
[1730862684809,3.86684,2586.1,2584.1,0.02540783]
[1730862684996,3.0,2585.9,2584.1,0.02540783]
[1730862685201,3.86622,2586.6,2584.1,0.02540783]
[1730862685390,3.0,2586.7,2584.1,0.02540783]
[1730862685588,3.0,2587.6,2584.1,0.02540783]
[1730862685923,3.0,2587.0,2584.1,0.02540783]
[1730862686127,3.86631,2586.5,2584.1,0.02540783]
[1730862686327,3.0,2585.7,2585.1,9.7104]
[1730862686624,3.0,2585.7,2584.1,0.02540783]
[1730862686625,3.86793,2585.4,2584.1,0.02540783]
[1730862686824,0.8163,2586.3,2584.1,0.02540783]
[1730862686998,0.55,2586.2,2584.1,0.02540783]
[1730862687205,0.55,2585.9,2584.1,0.02540783]
[1730862687402,4.41742,2585.7,2584.1,0.02540783]
[1730862687650,0.55,2585.5,2584.2,0.7878]
[1730862687930,6.86667,2586.2,2584.2,0.7878]
[1730862688136,0.01,2587.4,2584.2,0.7878]
[1730862688137,0.8039,2588.0,2584.2,0.7878]
[1730862688429,0.8039,2588.0,2584.1,0.02540783]
[1730862688430,0.44538859,2588.1,2584.7,0.01]
[1730862688725,3.864,2588.0,2585.2,0.7878]
[1730862688912,7.72856,2587.8,2585.2,0.7878]
[1730862689113,3.86428,2587.8,2585.2,0.7878]
[1730862689325,0.3864,2587.9,2585.7,0.7878]
[1730862689519,0.3,2589.0,2585.8,0.7878]
[1730862689520,3.86357,2588.3,2585.8,0.7878]
[1730862689705,0.3,2589.0,2586.3,0.55]
[1730862689888,3.86089,2590.1,2586.6,0.55]
[1730862690093,0.01,2590.3,2587.0,0.55]
[1730862690426,3.86287,2588.8,2587.3,0.7878]
[1730862690630,3.86306,2588.7,2587.3,0.7878]
[1730862690835,0.01,2590.2,2587.3,0.7878]
[1730862691132,3.86348,2588.4,2587.3,0.7878]
[1730862691345,3.86119,2589.9,2587.3,0.7878]
[1730862691548,3.85938,2591.1,2587.3,0.7878]
[1730862691549,1.30846874,2590.8,2587.3,0.7878]
[1730862691843,0.40325932,2589.8,2587.7,0.7878]
[1730862692139,0.8039,2591.5,2586.8,0.01]
[1730862692140,0.06493749,2589.7,2587.8,0.7878]
[1730862692433,0.06493749,2589.7,2588.0,0.55]
[1730862692596,0.06493749,2589.7,2587.9,0.7878]
[1730862693438,3.85923,2591.2,2588.2,0.8078]
[1730862693643,0.7878,2591.0,2588.2,0.7878]
[1730862693947,0.40307526,2592.5,2589.6,0.7878]
[1730862694311,0.01,2592.5,2589.6,0.7878]
[1730862694652,3.85981,2590.8,2589.6,0.7878]
[1730862694938,0.385981,2590.7,2589.6,0.7878]
[1730862695235,3.86071,2590.2,2589.6,0.7878]
[1730862695449,3.85966,2590.9,2589.6,0.7878]
[1730862695650,3.86116,2589.9,2586.9,0.02]
[1730862695943,0.01,2588.8,2584.8,0.01]
[1730862696157,3.0,2587.5,2584.8,0.01]
[1730862696447,0.55,2587.8,2584.7,0.01]
[1730862696655,3.0,2587.5,2584.3,0.01]
[1730862696819,0.55,2587.4,2584.8,0.01]
[1730862697142,0.55,2587.4,2584.1,0.02540783]
[1730862697143,0.55,2587.2,2584.1,0.02540783]
[1730862697340,0.55,2587.0,2584.1,0.02540783]
[1730862697547,3.355,2587.1,2584.2,0.02]
[1730862697747,3.355,2587.1,2584.1,0.02540783]
[1730862697905,0.55,2587.0,2584.1,0.02540783]
[1730862698113,3.55,2586.0,2584.1,0.02540783]
[1730862698305,0.52122935,2586.9,2584.1,0.02540783]
[1730862698506,3.86614,2586.6,2584.2,0.7878]
[1730862698815,3.55,2586.4,2584.2,0.7878]
[1730862699017,3.86699,2586.0,2584.2,0.7878]
[1730862699216,0.55,2586.4,2584.2,0.7878]
[1730862699614,3.55,2586.5,2584.2,0.7878]
[1730862699931,3.86596,2586.7,2584.2,0.7878]
[1730862700115,3.55,2585.9,2584.2,0.7878]
[1730862700315,0.55,2586.1,2584.2,0.7878]
[1730862700542,3.0,2586.2,2584.2,0.7878]
[1730862700746,3.0,2585.9,2584.2,0.7878]
[1730862701054,3.0,2585.5,2584.2,0.7878]
[1730862701255,3.0,2585.3,2584.2,0.7878]
[1730862701443,0.355,2585.4,2584.2,0.7878]
[1730862701746,3.86594,2586.7,2584.2,0.7878]
[1730862701956,3.86595,2586.7,2584.2,0.7878]
[1730862702153,0.7566,2587.7,2584.1,0.02540783]
[1730862702154,0.7566,2590.2,2584.3,0.3117]
[1730862702362,3.86403,2588.0,2585.7,0.3117]
[1730862702653,0.01624203,2589.9,2584.3,0.50233496]
[1730862702654,0.01,2588.9,2586.0,0.55]
[1730862702858,3.86403,2588.0,2586.0,0.55]
[1730862703154,0.01624203,2588.8,2586.4,0.55]
[1730862703361,0.01624203,2588.8,2586.7,0.7545]
[1730862703362,3.86299,2588.7,2586.7,0.7545]
[1730862703563,0.43679273,2588.8,2586.5,0.7545]
[1730862703857,3.8606,2590.3,2587.5,0.01]
[1730862704020,3.8606,2590.3,2587.2,3.0]
[1730862704021,3.8606,2590.3,2587.7,0.7545]
[1730862704216,0.01,2590.8,2588.0,0.55]
[1730862704448,0.01,2590.6,2588.1,0.7545]
[1730862704683,0.47829633,2590.6,2588.1,0.7545]
[1730862704817,0.46829633,2590.5,2588.1,0.7545]
[1730862705016,0.7566,2591.0,2588.1,0.7545]
[1730862705236,0.7566,2591.0,2587.4,0.7545]
[1730862705439,0.01,2590.9,2587.7,0.55]
[1730862705658,0.01,2590.8,2587.8,0.7545]
[1730862705851,0.47829633,2590.8,2587.8,0.7545]
[1730862706055,0.01,2590.1,2587.8,0.7545]
[1730862706221,0.01,2589.7,2587.8,0.7545]
[1730862706423,0.47829633,2589.6,2587.8,0.7545]
[1730862706619,0.46829633,2589.6,2587.8,0.7545]
[1730862706819,0.47829633,2589.6,2587.8,0.7545]
[1730862707055,0.01,2589.4,2587.8,0.7545]
[1730862707367,0.55,2589.7,2587.8,0.7545]
[1730862707661,1.02829633,2589.7,2587.8,0.7545]
[1730862708025,0.01,2589.3,2587.8,0.7545]
[1730862708355,0.01,2589.3,2583.6,1.96732931]
[1730862708356,0.01,2588.2,2585.3,0.7545]
[1730862708533,0.01,2587.9,2586.1,0.005]
[1730862708731,0.46829633,2587.8,2586.1,0.005]
[1730862709046,0.55,2587.7,2586.1,0.005]
[1730862709358,0.55,2587.7,2585.3,0.7545]
[1730862709359,0.01,2587.6,2585.3,0.7545]
[1730862709659,0.01,2587.2,2585.3,0.7545]
[1730862709865,0.55,2587.1,2585.3,0.7545]
[1730862710217,1.049963,2587.1,2584.1,0.02540783]
[1730862710417,0.01,2586.4,2584.1,0.02540783]
[1730862710822,0.01,2586.2,2584.1,0.02540783]
[1730862711059,0.01624203,2586.1,2584.1,0.02540783]
[1730862711224,0.02624203,2586.1,2584.1,0.02540783]
[1730862711557,0.01,2585.8,2584.1,0.02540783]
[1730862711768,0.55,2585.6,2582.9,0.1284061]
[1730862711922,0.56649282,2585.6,2582.9,0.1284061]
[1730862712345,0.55,2585.4,2582.5,2.0760825]
[1730862712534,1.66415815,2585.5,2579.4,0.01]
[1730862712535,0.55,2584.5,2579.4,0.01]
[1730862712842,0.2154,2580.9,2579.1,0.01]
[1730862713038,0.2154,2580.9,2579.5,0.01]
[1730862713241,0.2154,2580.9,2579.3,0.01]
[1730862713573,0.2154,2580.9,2578.9,0.06679454]
[1730862713768,0.8033,2580.7,2577.8,0.40313926]
[1730862713970,0.8033,2580.7,2577.7,0.1284061]
[1730862713971,3.0,2580.5,2577.7,0.1284061]
[1730862714169,3.0,2580.5,2575.9,0.06680601]
[1730862714170,0.55,2579.2,2575.9,0.06680601]
[1730862714339,0.55,2579.2,2575.1,0.53183565]
[1730862714340,0.8033,2579.0,2575.1,0.53183565]
[1730862714541,0.01,2578.6,2575.1,0.1284061]
[1730862714875,0.01649282,2578.5,2575.2,0.35759675]
[1730862715033,0.01649282,2578.5,2575.1,0.1384061]
[1730862715034,0.56649282,2578.5,2575.1,0.1284061]
[1730862715231,0.56649282,2578.5,2575.1,0.48600285]
[1730862715533,0.49566013,2578.4,2576.0,0.01]
[1730862715733,0.49566013,2578.4,2575.1,0.1284061]
[1730862715734,0.55,2580.4,2576.7,0.01]
[1730862715968,0.55,2580.4,2576.6,0.01]
[1730862715969,0.87021409,2582.1,2578.1,0.01]
[1730862716169,0.8033,2582.1,2578.4,0.01]
[1730862716473,0.8033,2582.1,2577.9,0.01]
[1730862716688,0.8033,2582.1,2578.2,0.01]
[1730862716850,0.01,2581.3,2576.7,0.01]
[1730862717050,0.01,2581.3,2575.2,5.0]
[1730862717051,0.01,2580.2,2575.9,0.01]
[1730862717277,0.60406519,2580.3,2576.3,0.01]
[1730862717575,0.01,2580.4,2576.1,0.01]
[1730862717775,0.60406519,2580.3,2575.7,0.01]
[1730862717962,0.01,2580.3,2576.4,0.01]
[1730862718186,0.8033,2580.8,2576.6,0.01]
[1730862718355,0.2154,2580.9,2577.5,0.01]
[1730862718557,0.2154,2580.9,2578.5,0.01]
[1730862718766,0.0095,2580.9,2579.1,0.01]
[1730862719090,0.0095,2580.9,2578.6,0.01]
[1730862719290,0.0095,2580.9,2578.3,0.01]
[1730862719488,0.0095,2580.9,2578.7,0.01]
[1730862719655,0.0095,2580.9,2578.6,0.01]
[1730862719852,0.0095,2580.9,2579.4,0.01]
[1730862720153,0.0095,2580.9,2580.1,0.01]
[1730862720351,0.0095,2580.9,2580.2,0.01]
[1730862720650,0.0095,2580.9,2580.5,0.01]
[1730862720870,0.01,2585.0,2581.0,0.01]
[1730862721185,0.01,2584.4,2580.3,0.01]
[1730862721394,0.01,2584.3,2580.2,0.01]
[1730862721603,0.01,2585.1,2580.6,0.02]
[1730862721751,0.8133,2584.1,2580.4,3.0]
[1730862721950,0.8133,2584.1,2579.0,5.0]
[1730862721951,0.60112144,2584.0,2580.0,0.01]
[1730862722172,0.01,2583.7,2579.7,0.01]
[1730862722371,0.01,2583.2,2578.9,0.01]
[1730862722570,0.52562144,2583.6,2579.3,0.01]
[1730862722895,0.8133,2584.9,2580.8,0.01]
[1730862723080,0.52562144,2584.8,2580.5,0.01]
[1730862723391,0.1384061,2585.6,2581.6,0.01]
[1730862723601,0.1384061,2585.6,2580.4,3.44059793]
[1730862723602,0.01,2583.6,2579.5,0.01]
[1730862723915,0.74703726,2585.3,2577.6,9.2267]
[1730862723916,1.3895749,2583.5,2578.8,0.01]
[1730862724074,0.8033,2582.3,2578.1,0.01]
[1730862724264,0.8133,2582.3,2578.3,0.01]
[1730862724464,0.8033,2583.1,2579.3,0.01]
[1730862724710,0.22141582,2585.3,2576.5,1.05601251]
[1730862724711,0.8033,2585.1,2581.0,0.01]
[1730862724925,0.22141582,2585.3,2581.6,0.01]
[1730862725067,0.22141582,2585.3,2580.8,0.01]
[1730862725270,0.01,2584.7,2580.6,0.01]
[1730862725611,0.8033,2584.6,2580.6,0.01]
[1730862725766,0.40343813,2585.2,2581.1,0.02]
[1730862725965,0.40343813,2585.2,2575.1,0.22354883]
[1730862725966,0.40343813,2585.2,2580.7,0.02]
[1730862726207,0.40343813,2585.2,2580.9,0.01]
[1730862726413,0.01,2585.0,2580.6,0.01]
[1730862726612,0.02,2585.1,2580.3,0.01]
[1730862726904,0.60596827,2584.2,2580.2,0.01]
[1730862727077,0.60596827,2584.2,2579.4,0.01]
[1730862727078,0.8133,2584.0,2579.4,0.01]
[1730862727278,0.60596827,2584.2,2580.5,0.02]
[1730862727465,0.60596827,2584.2,2581.0,0.02]
[1730862727666,0.8033,2585.5,2581.3,0.01]
[1730862728063,0.82727932,2585.3,2580.6,0.01]
[1730862728262,0.82727932,2585.3,2581.5,0.01]
[1730862728568,0.82727932,2585.3,2581.9,0.01]
[1730862729298,0.82727932,2585.3,2580.5,1.92617623]
[1730862729299,0.6058635,2585.3,2582.2,0.01]
[1730862729498,0.1284061,2585.6,2582.6,0.01]
[1730862729707,0.1284061,2585.6,2582.8,0.01]
[1730862730096,0.1284061,2585.6,2582.6,0.01]
[1730862730966,0.1284061,2585.6,2582.4,0.01]
[1730862731179,0.8005,2585.5,2580.9,0.01]
[1730862731417,0.1284061,2585.6,2581.7,0.01]
[1730862731685,0.01,2585.1,2581.4,0.61449271]
[1730862731921,0.8005,2585.5,2580.8,0.01]
[1730862732205,0.8005,2585.5,2580.6,1.9288141]
[1730862732206,0.8005,2585.5,2581.6,0.01]
[1730862732418,0.1284061,2585.6,2582.1,0.01]
[1730862732714,0.1284061,2585.6,2581.0,1.94757649]
[1730862732715,0.1384061,2585.6,2581.0,1.95757649]
[1730862732878,0.01,2585.3,2580.7,1.97214757]
[1730862733084,0.01,2584.9,2580.5,0.01]
[1730862733279,3.87039,2583.8,2580.7,0.154851]
[1730862733516,3.0,2582.9,2580.7,0.154851]
[1730862733722,0.55,2581.9,2578.7,0.01]
[1730862734029,4.57207172,2582.4,2581.4,3.87375]
[1730862734231,3.86922,2584.5,2582.3,3.87246]
[1730862734232,3.8697,2584.2,2582.3,3.87246]
[1730862734516,3.8697,2584.2,2579.0,5.154965]
[1730862734517,0.8005,2584.6,2580.0,0.01]
[1730862734862,0.8005,2584.6,2579.0,0.154965]
[1730862734863,3.87107,2583.3,2579.5,0.69004188]
[1730862735028,3.87188,2582.8,2579.5,0.69004188]
[1730862735322,3.87116,2583.2,2579.5,0.69004188]
[1730862735482,0.690042,2583.3,2579.1,0.69004188]
[1730862735682,0.690042,2583.3,2579.8,0.01]
[1730862735928,0.690042,2583.3,2579.7,0.01]
[1730862735929,0.690042,2583.3,2580.5,0.01]
[1730862736110,0.690042,2583.3,2581.3,0.01]
[1730862736284,3.86982,2584.1,2581.2,0.66170854]
[1730862736485,3.86965,2584.3,2580.9,0.01]
[1730862736705,3.86882,2584.8,2581.2,0.01]
[1730862737034,3.8687,2584.9,2580.3,0.01]
[1730862737195,3.87,2584.0,2580.7,0.01]
[1730862737397,3.87,2584.0,2579.6,5.0]
[1730862737398,3.87057,2583.6,2580.3,0.01]
[1730862737578,3.86983,2584.1,2580.6,0.01]
[1730862737784,3.87019,2583.9,2580.3,0.01]
[1730862738033,0.55,2583.8,2580.7,0.01]
[1730862738318,3.0,2583.4,2580.3,0.01]
[1730862738528,3.0,2583.5,2580.9,3.0]
[1730862738745,4.8675,2583.1,2578.5,1.95018596]
[1730862738953,3.0,2581.3,2578.3,0.005]
[1730862739160,4.561554,2581.2,2578.3,0.005]
[1730862739301,0.687394,2581.2,2578.4,0.01]
[1730862739502,3.87359,2581.6,2578.3,0.005]
[1730862739751,3.55,2581.5,2578.5,0.154984]
[1730862739899,3.0,2582.1,2578.8,0.01]
[1730862740102,3.0,2582.6,2579.3,0.01]
[1730862740424,3.0,2583.1,2579.3,0.01]
[1730862740628,0.8095,2583.4,2578.5,0.154984]
[1730862740629,3.0,2583.4,2578.7,0.01]
[1730862740843,3.87071,2583.5,2578.5,0.154984]
[1730862740844,0.8095,2582.7,2578.5,0.154984]
[1730862741151,0.01,2581.8,2578.3,0.005]
[1730862741352,3.0,2579.9,2578.3,0.005]
[1730862741499,3.0,2579.7,2578.3,0.005]
[1730862741701,3.0,2579.3,2578.3,0.005]
[1730862741932,3.87647,2579.7,2575.6,0.40342992]
[1730862741933,3.87853,2578.3,2575.6,0.40342992]
[1730862742141,3.0,2578.9,2574.9,5.0]
[1730862742385,0.687597,2579.8,2574.6,0.48987661]
[1730862742386,0.55,2579.3,2575.7,5.43303147]
[1730862742654,0.55,2580.7,2576.7,5.01]
[1730862742941,3.875,2580.7,2576.8,5.53319828]
[1730862743097,3.87525,2580.5,2577.3,0.01]
[1730862743303,0.8095,2580.8,2575.9,0.01]
[1730862743601,3.87853,2578.3,2575.0,0.01]
[1730862743808,3.87853,2578.3,2574.6,0.06684514]
[1730862744112,3.0,2578.8,2574.9,5.0]
[1730862744310,3.0,2578.6,2574.7,5.01]
[1730862744513,6.87838,2578.4,2575.0,5.0]
[1730862744740,0.55,2578.7,2574.8,0.45670661]
[1730862744921,0.8095,2579.0,2574.6,0.06684514]
[1730862744922,3.0,2578.5,2575.8,5.0]
[1730862745125,0.40357523,2579.3,2576.8,5.0]
[1730862745309,3.87491,2580.8,2577.5,5.0]
[1730862745510,3.87506,2580.6,2577.5,5.0]
[1730862745845,0.40357492,2580.6,2577.7,5.0]
[1730862746047,3.87625,2579.9,2577.3,5.0]
[1730862746340,3.87625,2579.9,2572.5,0.1303861]
[1730862746341,0.01,2579.8,2576.6,5.0]
[1730862746642,0.01,2579.8,2572.5,0.1303861]
[1730862746643,3.87832,2578.5,2575.5,5.0]
[1730862746825,0.01,2579.2,2575.8,5.0]
[1730862747040,3.0,2578.5,2577.1,5.0]
[1730862747202,3.87624,2579.9,2572.5,0.1284061]
[1730862747203,3.0,2579.9,2578.1,5.0]
[1730862747405,3.0,2579.6,2577.8,5.0]
[1730862747644,3.87751,2579.0,2577.2,5.0]
[1730862747850,0.768559,2579.8,2575.1,0.1284061]
[1730862747851,3.87718,2579.2,2577.3,5.0]
[1730862748050,3.0,2579.1,2578.1,5.0]
[1730862748205,0.768559,2579.8,2577.7,5.0]
[1730862748544,0.8095,2580.0,2575.1,0.1284061]
[1730862748545,3.0,2579.6,2577.2,5.0]
[1730862748841,3.0,2578.6,2577.7,5.0]
[1730862749050,1.30708838,2580.0,2577.7,5.0]
[1730862749051,3.0,2579.8,2577.7,5.0]
[1730862749353,4.68548,2580.0,2575.1,2.04790191]
[1730862749354,3.0,2579.4,2577.6,5.0]
[1730862749529,3.0,2579.4,2575.1,0.1284061]
[1730862749530,0.8095,2580.6,2578.5,5.0]
[1730862749744,0.8095,2581.2,2579.5,5.0]
[1730862749964,0.8095,2581.2,2576.7,2.39941764]
[1730862749965,3.87449,2581.0,2579.2,5.0]
[1730862750171,3.8754,2580.4,2578.5,5.0]
[1730862750450,3.8754,2580.4,2576.7,0.01]
[1730862750451,0.38754,2580.3,2579.2,5.0]
[1730862750627,0.8095,2581.2,2578.7,5.0]
[1730862750833,0.01,2580.7,2577.8,5.0]
[1730862751029,3.87698,2579.4,2577.2,5.0]
[1730862751339,3.87431,2581.1,2578.8,5.0]
[1730862751666,0.478381,2581.0,2578.2,5.0]
[1730862751877,3.87639,2579.8,2577.8,5.0]
[1730862752164,0.387639,2579.7,2577.6,5.0]
[1730862752327,3.87583,2580.1,2577.9,5.0]
[1730862752527,3.87583,2580.1,2575.1,0.1284061]
[1730862752528,0.02,2579.5,2576.8,5.0]
[1730862752723,0.55,2578.4,2576.8,5.0]
[1730862752971,0.55,2578.2,2576.6,5.0]
[1730862753270,3.87882,2578.1,2576.1,5.0]
[1730862753467,0.55,2578.2,2576.2,5.0]
[1730862753629,0.55,2578.2,2576.5,5.0]
[1730862753835,0.389713,2579.2,2575.1,0.1284061]
[1730862753836,0.55,2578.3,2576.2,5.0]
[1730862754181,0.55,2578.1,2575.8,5.0]
[1730862754363,0.55,2578.1,2576.1,5.0]
[1730862754364,3.55,2577.8,2576.1,5.0]
[1730862754668,3.87825,2578.5,2575.1,0.1284061]
[1730862754669,0.389713,2579.2,2577.1,5.0]
[1730862754888,0.8095,2580.0,2577.5,5.0]
[1730862755029,3.87629,2579.8,2577.5,5.0]
[1730862755224,0.8095,2580.0,2578.4,5.0]
[1730862755473,0.8095,2580.0,2578.1,5.0]
[1730862755644,1.277881,2581.0,2579.1,5.0]
[1730862755964,3.87445,2581.1,2578.9,5.0]
[1730862756202,3.87445,2581.1,2578.4,0.55]
[1730862756203,3.87374,2581.5,2579.1,5.0]
[1730862756376,0.8095,2581.6,2579.1,5.0]
[1730862756529,3.87371,2581.5,2579.1,5.0]
[1730862756725,0.468321,2581.4,2579.2,5.0]
[1730862756931,0.468321,2581.4,2579.5,5.0]
[1730862757270,0.7947,2582.5,2579.6,5.0]
[1730862757460,0.40362019,2582.3,2580.3,5.0]
[1730862757759,0.01,2583.3,2581.1,5.0]
[1730862757760,4.65579,2583.3,2581.1,5.0]
[1730862757963,4.65574,2583.3,2581.4,5.0]
[1730862758130,0.7847,2583.3,2581.0,5.0]
[1730862758331,0.7847,2583.3,2581.3,5.0]
[1730862758581,0.7847,2583.9,2582.2,5.0]
[1730862758739,3.87028,2583.8,2581.5,5.0]
[1730862758940,0.465498,2583.7,2581.5,5.0]
[1730862759157,3.87086,2583.4,2581.0,5.0]
[1730862759339,0.465498,2583.7,2581.0,5.0]
[1730862759656,0.465498,2583.7,2581.2,5.0]
[1730862759996,0.465498,2583.7,2581.5,5.0]
[1730862760181,0.7847,2583.9,2582.0,5.0]
[1730862760475,3.86864,2584.9,2582.5,5.0]
[1730862760625,0.7847,2585.1,2582.8,5.0]
[1730862760626,3.86886,2584.8,2582.8,5.0]
[1730862760830,1.18837951,2585.1,2582.8,5.0]
[1730862761075,3.86934,2584.5,2582.5,5.0]
[1730862761294,1.19837951,2585.1,2581.6,3.0]
[1730862761295,0.386934,2584.4,2583.2,5.0]
[1730862761456,1.18837951,2585.1,2581.9,3.0]
[1730862761457,0.7847,2585.1,2583.5,5.0]